2CCN - Level 2 Cost Centre Name,,9CCN - Level 9 Cost Centre Name,9CCC - Level 9 Cost Centre Code,9AN - Level 9 Account Name,9AC - Level 9 Account Code,Date posted,Date of transaction,Merchant Name,Merchant City,Merchant State,Merchant Zip Code,Originating Account Name,Originating Account Number,MCC/SIC Code,MCC Description,Original Amount,Currency,Conversion Rate,Billed Amount,Debit Credit,Reference Number,Statement Cycle,Account Name
Gloucester City Council,23UE,Museum of Gloucester,MU002,Exhibition Costs,3021,05/11/2018,03/11/2018,MILLINGTON & RAMST,GLOUCESTER,,GL1 5TA,REDACTED,556*********2362,5251,HARDWARE STORES,57.52,Pound Sterling (826),1,57.52,Debit,8.55E+22,02/12/2018,GLOUCESTER CC
Gloucester City Council,23UE,Museum of Gloucester,MU002,Catering Provisions,3103,05/11/2018,03/11/2018,ASDA SUPERSTORE,GLOUCESTER,GBR,GL1 1DS,REDACTED,556*********2362,5411,"GROCERY STORES, SUPERMARKETS",20.3,Pound Sterling (826),1,20.3,Debit,5.38E+21,02/12/2018,GLOUCESTER CC
Gloucester City Council,23UE,Museum of Gloucester,MU002,General Supplies/Materials,3025,09/11/2018,08/11/2018,THE WORKS,GLOUCESTER,,GL1 2NG,REDACTED,556*********2362,5310,DISCOUNT STORES,32.05,Pound Sterling (826),1,32.05,Debit,8.55E+22,02/12/2018,GLOUCESTER CC
Gloucester City Council,23UE,Museum of Gloucester,MU002,Exhibition Costs,3021,14/11/2018,13/11/2018,B & Q 1179,GLOUCESTER,,GL12SG,REDACTED,556*********2362,5211,LUMBER AND BUILDING MATERIALS STORES,198.36,Pound Sterling (826),1,198.36,Debit,8.55E+22,02/12/2018,GLOUCESTER CC
Gloucester City Council,23UE,Museum of Gloucester,MU002,General Supplies/Materials,3025,15/11/2018,14/11/2018,WWW.JUSTGLOVES.CO.UK,INTERNET,GBR,BH15 2AF,REDACTED,556*********2362,5999,MISCELLANEOUS AND RETAIL STORES,34.5,Pound Sterling (826),1,34.5,Debit,2.54E+22,02/12/2018,GLOUCESTER CC
Gloucester City Council,23UE,Gloucester Life Museum,MU005,Catering Provisions,3103,15/11/2018,14/11/2018,ASDA SUPERSTORE,GLOUCESTER,GBR,GL1 1DS,REDACTED,556*********2362,5411,"GROCERY STORES, SUPERMARKETS",4.16,Pound Sterling (826),1,4.16,Debit,3.54E+22,02/12/2018,GLOUCESTER CC
Gloucester City Council,23UE,Gloucester Life Museum,MU005,General Supplies/Materials,3025,16/11/2018,14/11/2018,AMZN MKTP UK*M81I97A04,AMAZON.CO.UK,LUX,,REDACTED,556*********2362,5942,BOOK STORES,72.15,Pound Sterling (826),1,72.15,Debit,8.54E+22,02/12/2018,GLOUCESTER CC
Gloucester City Council,23UE,Museum of Gloucester,MU002,Catering Provisions,3103,19/11/2018,17/11/2018,ASDA SUPERSTORE,GLOUCESTER,GBR,GL1 1DS,REDACTED,556*********2362,5411,"GROCERY STORES, SUPERMARKETS",5.96,Pound Sterling (826),1,5.96,Debit,1.54E+22,02/12/2018,GLOUCESTER CC
Gloucester City Council,23UE,Museum of Gloucester,MU002,General Supplies/Materials,3025,20/11/2018,19/11/2018,AMZN Mktp UK*M86DV7MS4,800-279-6620,LUX,L2338,REDACTED,556*********2362,5942,BOOK STORES,99.99,Pound Sterling (826),1,99.99,Debit,5.52E+22,02/12/2018,GLOUCESTER CC
Gloucester City Council,23UE,Museum of Gloucester,MU002,General Supplies/Materials,3025,21/11/2018,20/11/2018,MACHINE MART 51,GLOUCESTER,,GL1 4HY,REDACTED,556*********2362,5722,HOUSEHOLD APPLIANCE STORES,3.59,Pound Sterling (826),1,3.59,Debit,5.55E+22,02/12/2018,GLOUCESTER CC
Gloucester City Council,23UE,Museum of Gloucester,MU002,General Supplies/Materials,3025,21/11/2018,20/11/2018,POUNDLAND LTD 1167,GLOUCESTER,,GL11XH,REDACTED,556*********2362,5310,DISCOUNT STORES,6,Pound Sterling (826),1,6,Debit,8.55E+22,02/12/2018,GLOUCESTER CC
Gloucester City Council,23UE,Museum of Gloucester,MU002,General Supplies/Materials,3025,21/11/2018,20/11/2018,THE WORKS,GLOUCESTER,,GL1 2NG,REDACTED,556*********2362,5310,DISCOUNT STORES,4.58,Pound Sterling (826),1,4.58,Debit,8.55E+22,02/12/2018,GLOUCESTER CC
Gloucester City Council,23UE,Museum of Gloucester,MU002,Catering Provisions,3103,26/11/2018,23/11/2018,TESCO STORES 6819,GLOUCESTER,GBR,GL1 1TP,REDACTED,556*********2362,5411,"GROCERY STORES, SUPERMARKETS",6.3,Pound Sterling (826),1,6.3,Debit,1.54E+22,02/12/2018,GLOUCESTER CC
Gloucester City Council,23UE,Museum of Gloucester,MU002,General Supplies/Materials,3025,26/11/2018,23/11/2018,WH SMITH,GLOUCESTER,GBR,GL1 1NZ,REDACTED,556*********2362,5994,NEWS DEALERS AND NEWSSTANDS,3.99,Pound Sterling (826),1,3.99,Debit,3.54E+22,02/12/2018,GLOUCESTER CC
Gloucester City Council,23UE,Gloucester Life Museum,MU005,Catering Provisions,3103,26/11/2018,24/11/2018,ASDA SUPERSTORE,GLOUCESTER,GBR,GL1 1DS,REDACTED,556*********2362,5411,"GROCERY STORES, SUPERMARKETS",9.36,Pound Sterling (826),1,9.36,Debit,1.54E+22,02/12/2018,GLOUCESTER CC
Gloucester City Council,23UE,Head of Policy and Resources,MT004,Public Transport - Staff,2402,16/11/2018,15/11/2018,TRAINLINE,LONDON,,,REDACTED,471*********7903,4112,PASSENGER RAILWAYS,47.35,Pound Sterling (826),1,47.35,Debit,7.50E+22,02/12/2018,GLOUCESTER CC
Gloucester City Council,23UE,Head of Regeneration & Economic Development,MT005,Public Transport - Staff,2402,19/11/2018,16/11/2018,TRAINLINE,LONDON,,,REDACTED,471*********7903,4112,PASSENGER RAILWAYS,117.5,Pound Sterling (826),1,117.5,Debit,7.50E+22,02/12/2018,GLOUCESTER CC
Gloucester City Council,23UE,Culture Trust - Great Place,GP001,Public Transport - Staff,2402,09/11/2018,08/11/2018,Trainline,London,GBR,1445,REDACTED,556*********1418,4112,PASSENGER RAILWAYS,358.9,Pound Sterling (826),1,358.9,Debit,8.51E+22,02/12/2018,GLOUCESTER CC
Gloucester City Council,23UE,Culture Trust - Great Place,GP001,Public Transport - Staff,2402,09/11/2018,08/11/2018,Trainline,London,GBR,1445,REDACTED,556*********1418,4112,PASSENGER RAILWAYS,358.9,Pound Sterling (826),1,358.9,Debit,8.51E+22,02/12/2018,GLOUCESTER CC
Gloucester City Council,23UE,Managing Director & Directors,MT001,Conference Fees,553,23/11/2018,22/11/2018,WWW.SOLACE.ORG.UK,PONTEFRACT,,WF8 1NT,REDACTED,556*********1418,8699,MEMBERSHIP ORGANIZATIONS NOT ELSEWHERE CLASSIFIED,630,Pound Sterling (826),1,630,Debit,5.55E+22,02/12/2018,GLOUCESTER CC
Gloucester City Council,23UE,Managing Director & Directors,MT001,Public Transport - Staff,2402,26/11/2018,23/11/2018,Trainline,London,GBR,1445,REDACTED,556*********1418,4112,PASSENGER RAILWAYS,39.45,Pound Sterling (826),1,39.45,Debit,8.51E+22,02/12/2018,GLOUCESTER CC
Gloucester City Council,23UE,Countryside Unit,EP003,General Supplies/Materials,3025,07/11/2018,06/11/2018,PAYPAL *CROSTONCORN,35314369001,GBR,TW91EH,REDACTED,556*********6734,5995,PET SHOPS-PET FOOD AND SUPPLY STORES,31.95,Pound Sterling (826),1,31.95,Debit,8.51E+22,02/12/2018,GLOUCESTER CC
Gloucester City Council,23UE,Guildhall Bar and Caf�,GH005,Equipment and Furniture,3001,05/11/2018,04/11/2018,Amazon.co.uk*MT8FA29L4,AMAZON.CO.UK,LUX,L2338,REDACTED,556*********1155,5969,ALL OTHER DIRECT MARKETERS,15.8,Pound Sterling (826),1,15.8,Debit,5.52E+22,02/12/2018,GLOUCESTER CC
Gloucester City Council,23UE,Guildhall Bar and Caf�,GH005,Catering Provisions,3103,06/11/2018,05/11/2018,SAINSBURYS SACAT 0771,GLOUCESTER,GBR,GL1 2AG,REDACTED,556*********1155,5411,"GROCERY STORES, SUPERMARKETS",6.2,Pound Sterling (826),1,6.2,Debit,2.54E+22,02/12/2018,GLOUCESTER CC
Gloucester City Council,23UE,Guildhall Bar and Caf�,GH005,Catering Provisions,3103,06/11/2018,05/11/2018,SAINSBURYS SACAT 0771,GLOUCESTER,GBR,GL1 2AG,REDACTED,556*********1155,5411,"GROCERY STORES, SUPERMARKETS",5.3,Pound Sterling (826),1,5.3,Debit,2.54E+22,02/12/2018,GLOUCESTER CC
Gloucester City Council,23UE,Guildhall Bar and Caf�,GH005,Catering Provisions,3103,06/11/2018,05/11/2018,ICELAND,GLOUCESTER,GBR,GL1 1SA,REDACTED,556*********1155,5411,"GROCERY STORES, SUPERMARKETS",8,Pound Sterling (826),1,8,Debit,2.54E+22,02/12/2018,GLOUCESTER CC
Gloucester City Council,23UE,Guildhall Bar and Caf�,GH005,Catering Provisions,3103,06/11/2018,05/11/2018,ICELAND,GLOUCESTER,GBR,GL1 1SA,REDACTED,556*********1155,5411,"GROCERY STORES, SUPERMARKETS",1.5,Pound Sterling (826),1,1.5,Debit,2.54E+22,02/12/2018,GLOUCESTER CC
Gloucester City Council,23UE,Guildhall Bar and Caf�,GH005,Catering Provisions,3103,07/11/2018,06/11/2018,SAINSBURYS SACAT 0771,GLOUCESTER,GBR,GL1 2AG,REDACTED,556*********1155,5411,"GROCERY STORES, SUPERMARKETS",45.45,Pound Sterling (826),1,45.45,Debit,2.54E+22,02/12/2018,GLOUCESTER CC
Gloucester City Council,23UE,Guildhall Bar and Caf�,GH005,Catering Provisions,3103,07/11/2018,06/11/2018,ASDA SUPERSTORE,GLOUCESTER,GBR,GL1 1DS,REDACTED,556*********1155,5411,"GROCERY STORES, SUPERMARKETS",1.23,Pound Sterling (826),1,1.23,Debit,4.54E+22,02/12/2018,GLOUCESTER CC
Gloucester City Council,23UE,Guildhall Bar and Caf�,GH005,Catering Provisions,3103,07/11/2018,06/11/2018,ICELAND,GLOUCESTER,GBR,GL1 1SA,REDACTED,556*********1155,5411,"GROCERY STORES, SUPERMARKETS",2,Pound Sterling (826),1,2,Debit,2.54E+22,02/12/2018,GLOUCESTER CC
Gloucester City Council,23UE,Guildhall Bar and Caf�,GH005,Equipment and Furniture,3001,07/11/2018,06/11/2018,WH SMITH,GLOUCESTER,GBR,GL1 1NZ,REDACTED,556*********1155,5994,NEWS DEALERS AND NEWSSTANDS,4.99,Pound Sterling (826),1,4.99,Debit,2.54E+22,02/12/2018,GLOUCESTER CC
Gloucester City Council,23UE,Guildhall Bar and Caf�,GH005,Catering Provisions,3103,08/11/2018,07/11/2018,ICELAND,GLOUCESTER,GBR,GL1 1SA,REDACTED,556*********1155,5411,"GROCERY STORES, SUPERMARKETS",6,Pound Sterling (826),1,6,Debit,2.54E+22,02/12/2018,GLOUCESTER CC
Gloucester City Council,23UE,Gloucester Guildhall,GH001,Equipment and Furniture,3001,09/11/2018,08/11/2018,POSTOFFICE SELFSERVICE,GLOUCESTER,,GL1 1AD,REDACTED,556*********1155,9402,POSTAGE STAMPS,3.45,Pound Sterling (826),1,3.45,Debit,5.55E+22,02/12/2018,GLOUCESTER CC
Gloucester City Council,23UE,Guildhall Bar and Caf�,GH005,Catering Provisions,3103,12/11/2018,09/11/2018,SAINSBURYS SACAT 0771,GLOUCESTER,GBR,GL1 2AG,REDACTED,556*********1155,5411,"GROCERY STORES, SUPERMARKETS",11.15,Pound Sterling (826),1,11.15,Debit,2.54E+22,02/12/2018,GLOUCESTER CC
Gloucester City Council,23UE,Guildhall Events,GH002,Catering Provisions,3103,12/11/2018,09/11/2018,ASDA SUPERSTORE,GLOUCESTER,GBR,GL1 1DS,REDACTED,556*********1155,5411,"GROCERY STORES, SUPERMARKETS",75.61,Pound Sterling (826),1,75.61,Debit,4.54E+22,02/12/2018,GLOUCESTER CC
Gloucester City Council,23UE,Guildhall Bar and Caf�,GH005,Catering Provisions,3103,12/11/2018,09/11/2018,ICELAND,GLOUCESTER,GBR,GL1 1SA,REDACTED,556*********1155,5411,"GROCERY STORES, SUPERMARKETS",1.5,Pound Sterling (826),1,1.5,Debit,2.54E+22,02/12/2018,GLOUCESTER CC
Gloucester City Council,23UE,Guildhall Bar and Caf�,GH005,Catering Provisions,3103,12/11/2018,09/11/2018,TESCO STORE 2581,GLOUCESTER,GBR,GL1 2SR,REDACTED,556*********1155,5411,"GROCERY STORES, SUPERMARKETS",5.6,Pound Sterling (826),1,5.6,Debit,4.54E+22,02/12/2018,GLOUCESTER CC
Gloucester City Council,23UE,Guildhall Bar and Caf�,GH005,Catering Provisions,3103,13/11/2018,12/11/2018,SAINSBURYS SACAT 0771,GLOUCESTER,GBR,GL1 2AG,REDACTED,556*********1155,5411,"GROCERY STORES, SUPERMARKETS",2,Pound Sterling (826),1,2,Debit,2.54E+22,02/12/2018,GLOUCESTER CC
Gloucester City Council,23UE,Guildhall Bar and Caf�,GH005,Catering Provisions,3103,13/11/2018,12/11/2018,ICELAND,GLOUCESTER,GBR,GL1 1SA,REDACTED,556*********1155,5411,"GROCERY STORES, SUPERMARKETS",12,Pound Sterling (826),1,12,Debit,2.54E+22,02/12/2018,GLOUCESTER CC
Gloucester City Council,23UE,Guildhall Bar and Caf�,GH005,Catering Provisions,3103,15/11/2018,14/11/2018,ICELAND,GLOUCESTER,GBR,GL1 1SA,REDACTED,556*********1155,5411,"GROCERY STORES, SUPERMARKETS",8,Pound Sterling (826),1,8,Debit,2.54E+22,02/12/2018,GLOUCESTER CC
Gloucester City Council,23UE,Guildhall Bar and Caf�,GH005,Equipment and Furniture,3001,15/11/2018,14/11/2018,WWW.INSTANTPRINT.C,01709 382202,,S63 5DR,REDACTED,556*********1155,7338,QUICK-COPY AND REPRODUCTION SERVICES,39.19,Pound Sterling (826),1,39.19,Debit,8.55E+22,02/12/2018,GLOUCESTER CC
Gloucester City Council,23UE,Guildhall Events,GH002,Catering Provisions,3103,16/11/2018,15/11/2018,SAINSBURYS SACAT 0771,GLOUCESTER,GBR,GL1 2AG,REDACTED,556*********1155,5411,"GROCERY STORES, SUPERMARKETS",33.95,Pound Sterling (826),1,33.95,Debit,2.54E+22,02/12/2018,GLOUCESTER CC
Gloucester City Council,23UE,Guildhall Events,GH002,Catering Provisions,3103,16/11/2018,15/11/2018,ASDA SUPERSTORE,GLOUCESTER,GBR,GL1 1DS,REDACTED,556*********1155,5411,"GROCERY STORES, SUPERMARKETS",132,Pound Sterling (826),1,132,Debit,4.54E+22,02/12/2018,GLOUCESTER CC
Gloucester City Council,23UE,Managing Director & Directors,MT001,Catering Provisions,3103,16/11/2018,15/11/2018,ICELAND,GLOUCESTER,GBR,GL1 1SA,REDACTED,556*********1155,5411,"GROCERY STORES, SUPERMARKETS",29,Pound Sterling (826),1,29,Debit,2.54E+22,02/12/2018,GLOUCESTER CC
Gloucester City Council,23UE,Guildhall Events,GH002,Catering Provisions,3103,16/11/2018,15/11/2018,MARKS&SPENCER PLC,GLOUCESTER,GBR,GL1 1PH,REDACTED,556*********1155,5411,"GROCERY STORES, SUPERMARKETS",5.55,Pound Sterling (826),1,5.55,Debit,4.54E+22,02/12/2018,GLOUCESTER CC
Gloucester City Council,23UE,Guildhall Events,GH002,Catering Provisions,3103,16/11/2018,15/11/2018,WM MORRISON STORE,575 GLOUCESTE,,GL1 4BD,REDACTED,556*********1155,5411,"GROCERY STORES, SUPERMARKETS",102.78,Pound Sterling (826),1,102.78,Debit,8.55E+22,02/12/2018,GLOUCESTER CC
Gloucester City Council,23UE,Guildhall Bar and Caf�,GH005,Catering Provisions,3103,20/11/2018,19/11/2018,ICELAND,GLOUCESTER,GBR,GL1 1SA,REDACTED,556*********1155,5411,"GROCERY STORES, SUPERMARKETS",6.1,Pound Sterling (826),1,6.1,Debit,2.54E+22,02/12/2018,GLOUCESTER CC
Gloucester City Council,23UE,Guildhall Bar and Caf�,GH005,Catering Provisions,3103,21/11/2018,20/11/2018,SAINSBURYS SACAT 0771,GLOUCESTER,GBR,GL1 2AG,REDACTED,556*********1155,5411,"GROCERY STORES, SUPERMARKETS",15.44,Pound Sterling (826),1,15.44,Debit,2.54E+22,02/12/2018,GLOUCESTER CC
Gloucester City Council,23UE,Guildhall Bar and Caf�,GH005,Catering Provisions,3103,21/11/2018,20/11/2018,GREGGS PLC,GLOUCESTER,,GL1 1RW,REDACTED,556*********1155,5812,"EATING PLACES, RESTAURANTS",2,Pound Sterling (826),1,2,Debit,8.55E+22,02/12/2018,GLOUCESTER CC
Gloucester City Council,23UE,Guildhall Bar and Caf�,GH005,Catering Provisions,3103,22/11/2018,21/11/2018,SAINSBURYS SACAT 0771,GLOUCESTER,GBR,GL1 2AG,REDACTED,556*********1155,5411,"GROCERY STORES, SUPERMARKETS",9.35,Pound Sterling (826),1,9.35,Debit,2.54E+22,02/12/2018,GLOUCESTER CC
Gloucester City Council,23UE,Guildhall Bar and Caf�,GH005,Catering Provisions,3103,27/11/2018,26/11/2018,ICELAND,GLOUCESTER,GBR,GL1 1SA,REDACTED,556*********1155,5411,"GROCERY STORES, SUPERMARKETS",7,Pound Sterling (826),1,7,Debit,1.54E+22,02/12/2018,GLOUCESTER CC
Gloucester City Council,23UE,Guildhall Bar and Caf�,GH005,Catering Provisions,3103,29/11/2018,28/11/2018,SAINSBURYS SACAT 0771,GLOUCESTER,GBR,GL1 2AG,REDACTED,556*********1155,5411,"GROCERY STORES, SUPERMARKETS",5.8,Pound Sterling (826),1,5.8,Debit,2.54E+22,02/12/2018,GLOUCESTER CC
Gloucester City Council,23UE,Guildhall Bar and Caf�,GH005,Catering Provisions,3103,29/11/2018,28/11/2018,ICELAND,GLOUCESTER,GBR,GL1 1SA,REDACTED,556*********1155,5411,"GROCERY STORES, SUPERMARKETS",19.45,Pound Sterling (826),1,19.45,Debit,2.54E+22,02/12/2018,GLOUCESTER CC
Gloucester City Council,23UE,Guildhall Bar and Caf�,GH005,Catering Provisions,3103,30/11/2018,29/11/2018,SAINSBURYS SACAT 0771,GLOUCESTER,GBR,GL1 2AG,REDACTED,556*********1155,5411,"GROCERY STORES, SUPERMARKETS",4.5,Pound Sterling (826),1,4.5,Debit,2.54E+22,02/12/2018,GLOUCESTER CC
Gloucester City Council,23UE,Blackfriars,GH010,Advertising & Publicity,3404,15/11/2018,14/11/2018,WWW.CLOTHES2ORDER.COM,MANCHESTER M1,GBR,M17 1EH,REDACTED,556*********8997,5137,"MEN'S,WOMEN'S AND CHILDREN'S UNIFORMS AN",261.1,Pound Sterling (826),1,261.1,Debit,1.53E+22,02/12/2018,GLOUCESTER CC
Gloucester City Council,23UE,Gloucester Life Museum,MU005,Equipment and Furniture,3001,15/11/2018,14/11/2018,WWW.INSTANTPRINT.C,01709 382202,,S63 5DR,REDACTED,556*********8997,7338,QUICK-COPY AND REPRODUCTION SERVICES,18.99,Pound Sterling (826),1,18.99,Debit,8.55E+22,02/12/2018,GLOUCESTER CC
Gloucester City Council,23UE,Gloucester Life Museum,MU005,Equipment and Furniture,3001,19/11/2018,16/11/2018,officeoutlet.com,High Wycombe,GBR,HP11 1JU,REDACTED,556*********8997,5111,"STATIONERY,OFFICE SUPPLIES,PRINTING AND WRITING PAPER",127.4,Pound Sterling (826),1,127.4,Debit,8.53E+22,02/12/2018,GLOUCESTER CC
Gloucester City Council,23UE,Gloucester Life Museum,MU005,Equipment and Furniture,3001,19/11/2018,18/11/2018,Amazon.co.uk*M81HB0XQ4,AMAZON.CO.UK,LUX,L2338,REDACTED,556*********8997,5969,ALL OTHER DIRECT MARKETERS,13.83,Pound Sterling (826),1,13.83,Debit,5.52E+22,02/12/2018,GLOUCESTER CC
Gloucester City Council,23UE,Gloucester Life Museum,MU005,Equipment and Furniture,3001,19/11/2018,18/11/2018,Amazon.co.uk*M824D0XY4,AMAZON.CO.UK,LUX,L2338,REDACTED,556*********8997,5969,ALL OTHER DIRECT MARKETERS,13.83,Pound Sterling (826),1,13.83,Debit,5.52E+22,02/12/2018,GLOUCESTER CC
Gloucester City Council,23UE,Gloucester Life Museum,MU005,Equipment and Furniture,3001,19/11/2018,18/11/2018,Amazon.co.uk*M86HB6XU4,AMAZON.CO.UK,LUX,L2338,REDACTED,556*********8997,5969,ALL OTHER DIRECT MARKETERS,13.83,Pound Sterling (826),1,13.83,Debit,5.52E+22,02/12/2018,GLOUCESTER CC
Gloucester City Council,23UE,Gloucester Life Museum,MU005,Equipment and Furniture,3001,19/11/2018,18/11/2018,Amazon.co.uk*M874D7XF4,AMAZON.CO.UK,LUX,L2338,REDACTED,556*********8997,5969,ALL OTHER DIRECT MARKETERS,13.83,Pound Sterling (826),1,13.83,Debit,5.52E+22,02/12/2018,GLOUCESTER CC
Gloucester City Council,23UE,Gloucester Life Museum,MU005,Equipment and Furniture,3001,19/11/2018,18/11/2018,Amazon.co.uk*M89HB9XV4,AMAZON.CO.UK,LUX,L2338,REDACTED,556*********8997,5969,ALL OTHER DIRECT MARKETERS,13.83,Pound Sterling (826),1,13.83,Debit,5.52E+22,02/12/2018,GLOUCESTER CC
Gloucester City Council,23UE,Guildhall Events,GH002,Professional Advice/Consultants Fees,3952,23/11/2018,22/11/2018,Hotel on Booking.com,Amsterdam,NLD,1017 SG,REDACTED,556*********8997,7011,"LODGING, HOTELS, MOTELS, RESORTS",307.8,Pound Sterling (826),1,307.8,Debit,1.53E+22,02/12/2018,GLOUCESTER CC
Gloucester City Council,23UE,Museum of Gloucester,MU002,Building Repairs and Maintenance,1001,28/11/2018,27/11/2018,260 GLOUCESTER,GLOUCESTER,,GL1 5SD,REDACTED,556*********8997,7394,"EQUIP RENTALS & LEASING SERVICES, TOOL RENTAL, FURNITURE RENTAL",460,Pound Sterling (826),1,460,Debit,5.55E+22,02/12/2018,GLOUCESTER CC
Gloucester City Council,23UE,Guildhall Events,GH002,Professional Advice/Consultants Fees,3952,29/11/2018,22/11/2018,MIPERMIT LTD,INTERNET,GBR,SN15 5FD,REDACTED,556*********8997,7523,AUTOMOBILE PARKING LOTS AND GARAGES,30,Pound Sterling (826),1,30,Debit,2.54E+22,02/12/2018,GLOUCESTER CC
Gloucester City Council,23UE,Docks Complex - Services,AM006,Hospitality & Refreshments,3104,09/11/2018,08/11/2018,SAINSBURYS 2221,GLOUCESTER,GBR,GL2 5SA,REDACTED,556*********4301,5411,"GROCERY STORES, SUPERMARKETS",58.67,Pound Sterling (826),1,58.67,Debit,2.54E+22,02/12/2018,GLOUCESTER CC
Gloucester City Council,23UE,Docks Complex - Services,AM006,Hospitality & Refreshments,3104,26/11/2018,23/11/2018,TESCO STORES 6654,GLOUCESTER,GBR,GL3 1AB,REDACTED,556*********4301,5411,"GROCERY STORES, SUPERMARKETS",4.05,Pound Sterling (826),1,4.05,Debit,1.54E+22,02/12/2018,GLOUCESTER CC
Gloucester City Council,23UE,Docks Complex - Services,AM006,Hospitality & Refreshments,3104,30/11/2018,29/11/2018,TESCO STORES 6654,GLOUCESTER,GBR,GL3 1AB,REDACTED,556*********4301,5411,"GROCERY STORES, SUPERMARKETS",32.96,Pound Sterling (826),1,32.96,Debit,1.54E+22,02/12/2018,GLOUCESTER CC
Gloucester City Council,23UE,Docks Complex - Services,AM006,Mileage and Travel Allowances,2401,13/11/2018,12/11/2018,GLOUCESTER CITY COUNCI,GLOUCESTER,GBR,GL1 2EP,REDACTED,556*********6128,7523,AUTOMOBILE PARKING LOTS AND GARAGES,1.4,Pound Sterling (826),1,1.4,Debit,5.52E+22,02/12/2018,GLOUCESTER CC
Gloucester City Council,23UE,Docks Complex - Services,AM006,General Supplies/Materials,3025,14/11/2018,13/11/2018,WICKES,GLOUCESTER,,GL25DX,REDACTED,556*********6128,5211,LUMBER AND BUILDING MATERIALS STORES,38.94,Pound Sterling (826),1,38.94,Debit,8.55E+22,02/12/2018,GLOUCESTER CC
Gloucester City Council,23UE,Parks Management,NE007,Other Miscellaneous Income,8620,06/11/2018,05/11/2018,THE INSTITUTE OF CHART,EDINBURGH,GBR,EH2 2JG,REDACTED,556*********3029,8398,CHARITABLE AND SOCIAL SERVICE ORGANIZATIONS,37.5,Pound Sterling (826),1,37.5,Debit,5.27E+21,02/12/2018,GLOUCESTER CC
Gloucester City Council,23UE,Contact Centre,CT001,Mileage and Travel Allowances,2401,22/11/2018,21/11/2018,Trainline,London,GBR,1445,REDACTED,556*********3029,4112,PASSENGER RAILWAYS,114,Pound Sterling (826),1,114,Debit,8.51E+22,02/12/2018,GLOUCESTER CC
Gloucester City Council,23UE,Civic Admin & Hospitality,DS001,Equipment and Furniture,3001,23/11/2018,21/11/2018,AMZN MKTP UK*M80KD5654,AMAZON.CO.UK,LUX,,REDACTED,556*********3029,5942,BOOK STORES,25.75,Pound Sterling (826),1,25.75,Debit,8.54E+22,02/12/2018,GLOUCESTER CC
Gloucester City Council,23UE,Civic Admin & Hospitality,DS001,Equipment and Furniture,3001,27/11/2018,26/11/2018,AMZN Mktp UK*M815N6YP4,800-279-6620,LUX,L2338,REDACTED,556*********3029,5942,BOOK STORES,2.48,Pound Sterling (826),1,2.48,Debit,5.52E+22,02/12/2018,GLOUCESTER CC
Gloucester City Council,23UE,Members Support,DS002,spitality & Refreshments,3104,29/11/2018,27/11/2018,PREMIER INN44036025,LONDON,,EC3R 8EE,REDACTED,556*********3029,3811,PREMIER INN,135,Pound Sterling (826),1,135,Debit,5.55E+22,02/12/2018,GLOUCESTER CC
Gloucester City Council,23UE,Members Support,DS002,Mileage and Travel Allowances,2401,30/11/2018,29/11/2018,Trainline,London,GBR,1445,REDACTED,556*********3029,4112,PASSENGER RAILWAYS,180.2,Pound Sterling (826),1,180.2,Debit,8.51E+22,02/12/2018,GLOUCESTER CC
Gloucester City Council,23UE,Members Support,DS002,Mileage and Travel Allowances,2401,30/11/2018,29/11/2018,Trainline,London,GBR,1445,REDACTED,556*********3029,4112,PASSENGER RAILWAYS,28.95,Pound Sterling (826),1,28.95,Debit,8.51E+22,02/12/2018,GLOUCESTER CC
Gloucester City Council,23UE,Housing Services,HS001,B&B Payments,1303,05/11/2018,02/11/2018,TRAVELODGE GB0000,THAME,,OX9 3AT,REDACTED,556*********6959,3615,TRAVELODGE,220,Pound Sterling (826),1,220,Debit,5.55E+22,02/12/2018,GLOUCESTER CC
Gloucester City Council,23UE,Housing Services,HS001,B&B Payments,1303,05/11/2018,02/11/2018,IBIS GLOUCESTER,GLOUCESTER,GBR,GL43DG,REDACTED,556*********6959,3533,HOTEL IBIS,65,Pound Sterling (826),1,65,Debit,5.52E+22,02/12/2018,GLOUCESTER CC
Gloucester City Council,23UE,Housing Services,HS001,B&B Payments,1303,05/11/2018,03/11/2018,IBIS GLOUCESTER,GLOUCESTER,GBR,GL43DG,REDACTED,556*********6959,3533,HOTEL IBIS,185,Pound Sterling (826),1,185,Debit,5.52E+22,02/12/2018,GLOUCESTER CC
Gloucester City Council,23UE,Housing Services,HS001,B&B Payments,1303,06/11/2018,05/11/2018,TRAVELODGE GB0000,THAME,,OX9 3AT,REDACTED,556*********6959,3615,TRAVELODGE,422,Pound Sterling (826),1,422,Debit,5.55E+22,02/12/2018,GLOUCESTER CC
Gloucester City Council,23UE,Housing Services,HS001,B&B Payments,1303,06/11/2018,05/11/2018,TRAVELODGE GB0000,THAME,,OX9 3AT,REDACTED,556*********6959,3615,TRAVELODGE,271,Pound Sterling (826),1,271,Debit,5.55E+22,02/12/2018,GLOUCESTER CC
Gloucester City Council,23UE,Housing Services,HS001,B&B Payments,1303,06/11/2018,05/11/2018,TRAVELODGE GB0000,THAME,,OX9 3AT,REDACTED,556*********6959,3615,TRAVELODGE,230,Pound Sterling (826),1,230,Debit,5.55E+22,02/12/2018,GLOUCESTER CC
Gloucester City Council,23UE,Housing Services,HS001,B&B Payments,1303,06/11/2018,05/11/2018,TRAVELODGE GB0000,THAME,,OX9 3AT,REDACTED,556*********6959,3615,TRAVELODGE,297,Pound Sterling (826),1,297,Debit,5.55E+22,02/12/2018,GLOUCESTER CC
Gloucester City Council,23UE,Housing Services,HS001,B&B Payments,1303,06/11/2018,05/11/2018,TRAVELODGE GB0000,THAME,,OX9 3AT,REDACTED,556*********6959,3615,TRAVELODGE,242,Pound Sterling (826),1,242,Debit,5.55E+22,02/12/2018,GLOUCESTER CC
Gloucester City Council,23UE,Housing Services,HS001,B&B Payments,1303,06/11/2018,05/11/2018,TRAVELODGE GB0000,THAME,,OX9 3AT,REDACTED,556*********6959,3615,TRAVELODGE,242,Pound Sterling (826),1,242,Debit,5.55E+22,02/12/2018,GLOUCESTER CC
Gloucester City Council,23UE,Housing Services,HS001,B&B Payments,1303,06/11/2018,05/11/2018,TRAVELODGE GB0000,THAME,,OX9 3AT,REDACTED,556*********6959,3615,TRAVELODGE,188,Pound Sterling (826),1,188,Debit,5.55E+22,02/12/2018,GLOUCESTER CC
Gloucester City Council,23UE,Housing Services,HS001,B&B Payments,1303,07/11/2018,06/11/2018,TRAVELODGE GB0000,THAME,,OX9 3AT,REDACTED,556*********6959,3615,TRAVELODGE,196,Pound Sterling (826),1,196,Debit,5.55E+22,02/12/2018,GLOUCESTER CC
Gloucester City Council,23UE,Housing Services,HS001,B&B Payments,1303,08/11/2018,06/11/2018,PREMIER INN44014635,GLOUCESTER,,GL2 9BE,REDACTED,556*********6959,3811,PREMIER INN,387,Pound Sterling (826),1,387,Debit,5.55E+22,02/12/2018,GLOUCESTER CC
Gloucester City Council,23UE,Housing Services,HS001,B&B Payments,1303,08/11/2018,07/11/2018,TRAVELODGE GB0000,THAME,,OX9 3AT,REDACTED,556*********6959,3615,TRAVELODGE,270,Pound Sterling (826),1,270,Debit,5.55E+22,02/12/2018,GLOUCESTER CC
Gloucester City Council,23UE,Housing Services,HS001,B&B Payments,1303,08/11/2018,07/11/2018,TRAVELODGE GB0000,THAME,,OX9 3AT,REDACTED,556*********6959,3615,TRAVELODGE,116,Pound Sterling (826),1,116,Debit,5.55E+22,02/12/2018,GLOUCESTER CC
Gloucester City Council,23UE,Housing Services,HS001,B&B Payments,1303,08/11/2018,07/11/2018,TRAVELODGE GB0000,THAME,,OX9 3AT,REDACTED,556*********6959,3615,TRAVELODGE,265,Pound Sterling (826),1,265,Debit,5.55E+22,02/12/2018,GLOUCESTER CC
Gloucester City Council,23UE,Housing Services,HS001,B&B Payments,1303,09/11/2018,08/11/2018,TRAVELODGE GB0000,THAME,,OX9 3AT,REDACTED,556*********6959,3615,TRAVELODGE,274,Pound Sterling (826),1,274,Debit,5.55E+22,02/12/2018,GLOUCESTER CC
Gloucester City Council,23UE,Housing Services,HS001,B&B Payments,1303,12/11/2018,08/11/2018,PREMIER INN44020525,TEWKESBURY,,GL20 8ND,REDACTED,556*********6959,3811,PREMIER INN,330.5,Pound Sterling (826),1,330.5,Debit,5.55E+22,02/12/2018,GLOUCESTER CC
Gloucester City Council,23UE,Housing Services,HS001,B&B Payments,1303,12/11/2018,09/11/2018,TRAVELODGE GB0000,THAME,,OX9 3AT,REDACTED,556*********6959,3615,TRAVELODGE,300,Pound Sterling (826),1,300,Debit,5.55E+22,02/12/2018,GLOUCESTER CC
Gloucester City Council,23UE,Housing Services,HS001,B&B Payments,1303,12/11/2018,09/11/2018,TRAVELODGE GB0000,THAME,,OX9 3AT,REDACTED,556*********6959,3615,TRAVELODGE,175,Pound Sterling (826),1,175,Debit,5.55E+22,02/12/2018,GLOUCESTER CC
Gloucester City Council,23UE,Housing Services,HS001,B&B Payments,1303,12/11/2018,09/11/2018,TRAVELODGE GB0000,THAME,,OX9 3AT,REDACTED,556*********6959,3615,TRAVELODGE,338,Pound Sterling (826),1,338,Debit,5.55E+22,02/12/2018,GLOUCESTER CC
Gloucester City Council,23UE,Housing Services,HS001,B&B Payments,1303,12/11/2018,09/11/2018,TRAVELODGE GB0000,THAME,,OX9 3AT,REDACTED,556*********6959,3615,TRAVELODGE,177,Pound Sterling (826),1,177,Debit,5.55E+22,02/12/2018,GLOUCESTER CC
Gloucester City Council,23UE,Housing Services,HS001,B&B Payments,1303,12/11/2018,09/11/2018,TRAVELODGE GB0000,THAME,,OX9 3AT,REDACTED,556*********6959,3615,TRAVELODGE,187,Pound Sterling (826),1,187,Debit,5.55E+22,02/12/2018,GLOUCESTER CC
Gloucester City Council,23UE,Housing Services,HS001,B&B Payments,1303,12/11/2018,09/11/2018,TRAVELODGE GB0000,THAME,,OX9 3AT,REDACTED,556*********6959,3615,TRAVELODGE,196,Pound Sterling (826),1,196,Debit,5.55E+22,02/12/2018,GLOUCESTER CC
Gloucester City Council,23UE,Housing Services,HS001,B&B Payments,1303,12/11/2018,09/11/2018,TRAVELODGE GB0000,THAME,,OX9 3AT,REDACTED,556*********6959,3615,TRAVELODGE,167,Pound Sterling (826),1,167,Debit,5.55E+22,02/12/2018,GLOUCESTER CC
Gloucester City Council,23UE,Housing Services,HS001,B&B Payments,1303,12/11/2018,09/11/2018,TRAVELODGE GB0000,THAME,,OX9 3AT,REDACTED,556*********6959,3615,TRAVELODGE,182,Pound Sterling (826),1,182,Debit,5.55E+22,02/12/2018,GLOUCESTER CC
Gloucester City Council,23UE,Housing Services,HS001,B&B Payments,1303,12/11/2018,09/11/2018,PREMIER INN 44537895,GLOUCESTER,,GL1 5SF,REDACTED,556*********6959,3811,PREMIER INN,277,Pound Sterling (826),1,277,Debit,5.55E+22,02/12/2018,GLOUCESTER CC
Gloucester City Council,23UE,Housing Services,HS001,B&B Payments,1303,13/11/2018,12/11/2018,TRAVELODGE GB0000,THAME,,OX9 3AT,REDACTED,556*********6959,3615,TRAVELODGE,54,Pound Sterling (826),1,54,Debit,5.55E+22,02/12/2018,GLOUCESTER CC
Gloucester City Council,23UE,Housing Services,HS001,B&B Payments,1303,13/11/2018,12/11/2018,TRAVELODGE GB0000,THAME,,OX9 3AT,REDACTED,556*********6959,3615,TRAVELODGE,71,Pound Sterling (826),1,71,Debit,5.55E+22,02/12/2018,GLOUCESTER CC
Gloucester City Council,23UE,Housing Services,HS001,B&B Payments,1303,13/11/2018,12/11/2018,TRAVELODGE GB0000,THAME,,OX9 3AT,REDACTED,556*********6959,3615,TRAVELODGE,54,Pound Sterling (826),1,54,Debit,5.55E+22,02/12/2018,GLOUCESTER CC
Gloucester City Council,23UE,Housing Services,HS001,B&B Payments,1303,13/11/2018,12/11/2018,TRAVELODGE GB0000,THAME,,OX9 3AT,REDACTED,556*********6959,3615,TRAVELODGE,54,Pound Sterling (826),1,54,Debit,5.55E+22,02/12/2018,GLOUCESTER CC
Gloucester City Council,23UE,Housing Services,HS001,B&B Payments,1303,13/11/2018,12/11/2018,TRAVELODGE GB0000,THAME,,OX9 3AT,REDACTED,556*********6959,3615,TRAVELODGE,54,Pound Sterling (826),1,54,Debit,5.55E+22,02/12/2018,GLOUCESTER CC
Gloucester City Council,23UE,Housing Services,HS001,B&B Payments,1303,13/11/2018,12/11/2018,TRAVELODGE GB0000,THAME,,OX9 3AT,REDACTED,556*********6959,3615,TRAVELODGE,230,Pound Sterling (826),1,230,Debit,5.55E+22,02/12/2018,GLOUCESTER CC
Gloucester City Council,23UE,Housing Services,HS001,B&B Payments,1303,13/11/2018,12/11/2018,TRAVELODGE GB0000,THAME,,OX9 3AT,REDACTED,556*********6959,3615,TRAVELODGE,208,Pound Sterling (826),1,208,Debit,5.55E+22,02/12/2018,GLOUCESTER CC
Gloucester City Council,23UE,Housing Services,HS001,B&B Payments,1303,13/11/2018,12/11/2018,TRAVELODGE GB0000,THAME,,OX9 3AT,REDACTED,556*********6959,3615,TRAVELODGE,275,Pound Sterling (826),1,275,Debit,5.55E+22,02/12/2018,GLOUCESTER CC
Gloucester City Council,23UE,Housing Services,HS001,B&B Payments,1303,13/11/2018,12/11/2018,TRAVELODGE GB0000,THAME,,OX9 3AT,REDACTED,556*********6959,3615,TRAVELODGE,301,Pound Sterling (826),1,301,Debit,5.55E+22,02/12/2018,GLOUCESTER CC
Gloucester City Council,23UE,Housing Services,HS001,B&B Payments,1303,13/11/2018,12/11/2018,TRAVELODGE GB0000,THAME,,OX9 3AT,REDACTED,556*********6959,3615,TRAVELODGE,182,Pound Sterling (826),1,182,Debit,5.55E+22,02/12/2018,GLOUCESTER CC
Gloucester City Council,23UE,Housing Services,HS001,B&B Payments,1303,13/11/2018,12/11/2018,TRAVELODGE GB0000,THAME,,OX9 3AT,REDACTED,556*********6959,3615,TRAVELODGE,478,Pound Sterling (826),1,478,Debit,5.55E+22,02/12/2018,GLOUCESTER CC
Gloucester City Council,23UE,Housing Services,HS001,B&B Payments,1303,13/11/2018,12/11/2018,TRAVELODGE GB0000,THAME,,OX9 3AT,REDACTED,556*********6959,3615,TRAVELODGE,137,Pound Sterling (826),1,137,Debit,5.55E+22,02/12/2018,GLOUCESTER CC
Gloucester City Council,23UE,Housing Services,HS001,B&B Payments,1303,14/11/2018,12/11/2018,PREMIER INN44020525,TEWKESBURY,,GL20 8ND,REDACTED,556*********6959,3811,PREMIER INN,175,Pound Sterling (826),1,175,Debit,5.55E+22,02/12/2018,GLOUCESTER CC
Gloucester City Council,23UE,Housing Services,HS001,B&B Payments,1303,14/11/2018,13/11/2018,TRAVELODGE GB0000,THAME,,OX9 3AT,REDACTED,556*********6959,3615,TRAVELODGE,246,Pound Sterling (826),1,246,Debit,5.55E+22,02/12/2018,GLOUCESTER CC
Gloucester City Council,23UE,Housing Services,HS001,B&B Payments,1303,14/11/2018,13/11/2018,TRAVELODGE GB0000,THAME,,OX9 3AT,REDACTED,556*********6959,3615,TRAVELODGE,246,Pound Sterling (826),1,246,Debit,5.55E+22,02/12/2018,GLOUCESTER CC
Gloucester City Council,23UE,Housing Services,HS001,B&B Payments,1303,14/11/2018,13/11/2018,TRAVELODGE GB0000,THAME,,OX9 3AT,REDACTED,556*********6959,3615,TRAVELODGE,88,Pound Sterling (826),1,88,Debit,5.55E+22,02/12/2018,GLOUCESTER CC
Gloucester City Council,23UE,Housing Services,HS001,B&B Payments,1303,14/11/2018,13/11/2018,TRAVELODGE GB0000,THAME,,OX9 3AT,REDACTED,556*********6959,3615,TRAVELODGE,246,Pound Sterling (826),1,246,Debit,5.55E+22,02/12/2018,GLOUCESTER CC
Gloucester City Council,23UE,Housing Services,HS001,B&B Payments,1303,14/11/2018,13/11/2018,TRAVELODGE GB0000,THAME,,OX9 3AT,REDACTED,556*********6959,3615,TRAVELODGE,246,Pound Sterling (826),1,246,Debit,5.55E+22,02/12/2018,GLOUCESTER CC
Gloucester City Council,23UE,Housing Services,HS001,B&B Payments,1303,14/11/2018,13/11/2018,TRAVELODGE GB0000,THAME,,OX9 3AT,REDACTED,556*********6959,3615,TRAVELODGE,-246,Pound Sterling (826),1,-246,Credit,5.55E+22,02/12/2018,GLOUCESTER CC
Gloucester City Council,23UE,Housing Services,HS001,B&B Payments,1303,15/11/2018,13/11/2018,PREMIER INN44521220,GLOUCESTER,,GL4 3HR,REDACTED,556*********6959,3811,PREMIER INN,313.5,Pound Sterling (826),1,313.5,Debit,5.55E+22,02/12/2018,GLOUCESTER CC
Gloucester City Council,23UE,Housing Services,HS001,B&B Payments,1303,15/11/2018,14/11/2018,TRAVELODGE GB0000,THAME,,OX9 3AT,REDACTED,556*********6959,3615,TRAVELODGE,163,Pound Sterling (826),1,163,Debit,5.55E+22,02/12/2018,GLOUCESTER CC
Gloucester City Council,23UE,Housing Services,HS001,B&B Payments,1303,16/11/2018,15/11/2018,TRAVELODGE GB0000,THAME,,OX9 3AT,REDACTED,556*********6959,3615,TRAVELODGE,79,Pound Sterling (826),1,79,Debit,5.55E+22,02/12/2018,GLOUCESTER CC
Gloucester City Council,23UE,Housing Services,HS001,B&B Payments,1303,16/11/2018,15/11/2018,TRAVELODGE GB0000,THAME,,OX9 3AT,REDACTED,556*********6959,3615,TRAVELODGE,334,Pound Sterling (826),1,334,Debit,5.55E+22,02/12/2018,GLOUCESTER CC
Gloucester City Council,23UE,Housing Services,HS001,B&B Payments,1303,16/11/2018,15/11/2018,TRAVELODGE GB0000,THAME,,OX9 3AT,REDACTED,556*********6959,3615,TRAVELODGE,514,Pound Sterling (826),1,514,Debit,5.55E+22,02/12/2018,GLOUCESTER CC
Gloucester City Council,23UE,Housing Services,HS001,B&B Payments,1303,19/11/2018,15/11/2018,PREMIER INN44011720,CHELTENHAM,,GL51 7AY,REDACTED,556*********6959,3811,PREMIER INN,588,Pound Sterling (826),1,588,Debit,5.55E+22,02/12/2018,GLOUCESTER CC
Gloucester City Council,23UE,Housing Services,HS001,B&B Payments,1303,19/11/2018,16/11/2018,Amerisuites,GLOUCESTER,,GL2 4NF,REDACTED,556*********6959,3514,AMERISUITES,570,Pound Sterling (826),1,570,Debit,8.55E+22,02/12/2018,GLOUCESTER CC
Gloucester City Council,23UE,Housing Services,HS001,B&B Payments,1303,19/11/2018,16/11/2018,PREMIER INN44521220,GLOUCESTER,,GL4 3HR,REDACTED,556*********6959,3811,PREMIER INN,341,Pound Sterling (826),1,341,Debit,5.55E+22,02/12/2018,GLOUCESTER CC
Gloucester City Council,23UE,Housing Services,HS001,B&B Payments,1303,20/11/2018,19/11/2018,TRAVELODGE GB0000,THAME,,OX9 3AT,REDACTED,556*********6959,3615,TRAVELODGE,244,Pound Sterling (826),1,244,Debit,5.55E+22,02/12/2018,GLOUCESTER CC
Gloucester City Council,23UE,Housing Services,HS001,B&B Payments,1303,20/11/2018,19/11/2018,TRAVELODGE GB0000,THAME,,OX9 3AT,REDACTED,556*********6959,3615,TRAVELODGE,182,Pound Sterling (826),1,182,Debit,5.55E+22,02/12/2018,GLOUCESTER CC
Gloucester City Council,23UE,Housing Services,HS001,B&B Payments,1303,20/11/2018,19/11/2018,TRAVELODGE GB0000,THAME,,OX9 3AT,REDACTED,556*********6959,3615,TRAVELODGE,244,Pound Sterling (826),1,244,Debit,5.55E+22,02/12/2018,GLOUCESTER CC
Gloucester City Council,23UE,Housing Services,HS001,B&B Payments,1303,20/11/2018,19/11/2018,TRAVELODGE GB0000,THAME,,OX9 3AT,REDACTED,556*********6959,3615,TRAVELODGE,120,Pound Sterling (826),1,120,Debit,5.55E+22,02/12/2018,GLOUCESTER CC
Gloucester City Council,23UE,Housing Services,HS001,B&B Payments,1303,20/11/2018,19/11/2018,TRAVELODGE GB0000,THAME,,OX9 3AT,REDACTED,556*********6959,3615,TRAVELODGE,244,Pound Sterling (826),1,244,Debit,5.55E+22,02/12/2018,GLOUCESTER CC
Gloucester City Council,23UE,Housing Services,HS001,B&B Payments,1303,20/11/2018,19/11/2018,HIE GLOUCESTER SOUTH,GLOUCESTER,GBR,GL2 2AB,REDACTED,556*********6959,3501,HOLIDAY INNS,631.67,Pound Sterling (826),1,631.67,Debit,5.52E+22,02/12/2018,GLOUCESTER CC
Gloucester City Council,23UE,Housing Services,HS001,B&B Payments,1303,21/11/2018,20/11/2018,TRAVELODGE GB0000,THAME,,OX9 3AT,REDACTED,556*********6959,3615,TRAVELODGE,457,Pound Sterling (826),1,457,Debit,5.55E+22,02/12/2018,GLOUCESTER CC
Gloucester City Council,23UE,Housing Services,HS001,B&B Payments,1303,21/11/2018,20/11/2018,TRAVELODGE GB0000,THAME,,OX9 3AT,REDACTED,556*********6959,3615,TRAVELODGE,403,Pound Sterling (826),1,403,Debit,5.55E+22,02/12/2018,GLOUCESTER CC
Gloucester City Council,23UE,Housing Services,HS001,B&B Payments,1303,21/11/2018,20/11/2018,TRAVELODGE GB0000,THAME,,OX9 3AT,REDACTED,556*********6959,3615,TRAVELODGE,62,Pound Sterling (826),1,62,Debit,5.55E+22,02/12/2018,GLOUCESTER CC
Gloucester City Council,23UE,Housing Services,HS001,B&B Payments,1303,22/11/2018,21/11/2018,TRAVELODGE GB0000,THAME,,OX9 3AT,REDACTED,556*********6959,3615,TRAVELODGE,346,Pound Sterling (826),1,346,Debit,5.55E+22,02/12/2018,GLOUCESTER CC
Gloucester City Council,23UE,Housing Services,HS001,B&B Payments,1303,23/11/2018,21/11/2018,PREMIER INN44020525,TEWKESBURY,,GL20 8ND,REDACTED,556*********6959,3811,PREMIER INN,635,Pound Sterling (826),1,635,Debit,5.55E+22,02/12/2018,GLOUCESTER CC
Gloucester City Council,23UE,Housing Services,HS001,B&B Payments,1303,23/11/2018,22/11/2018,TRAVELODGE GB0000,THAME,,OX9 3AT,REDACTED,556*********6959,3615,TRAVELODGE,371,Pound Sterling (826),1,371,Debit,5.55E+22,02/12/2018,GLOUCESTER CC
Gloucester City Council,23UE,Housing Services,HS001,B&B Payments,1303,26/11/2018,23/11/2018,Amerisuites,GLOUCESTER,,GL2 4NF,REDACTED,556*********6959,3514,AMERISUITES,570,Pound Sterling (826),1,570,Debit,8.55E+22,02/12/2018,GLOUCESTER CC
Gloucester City Council,23UE,Housing Services,HS001,B&B Payments,1303,27/11/2018,26/11/2018,TRAVELODGE GB0000,THAME,,OX9 3AT,REDACTED,556*********6959,3615,TRAVELODGE,178,Pound Sterling (826),1,178,Debit,5.55E+22,02/12/2018,GLOUCESTER CC
Gloucester City Council,23UE,Housing Services,HS001,B&B Payments,1303,27/11/2018,26/11/2018,TRAVELODGE GB0000,THAME,,OX9 3AT,REDACTED,556*********6959,3615,TRAVELODGE,178,Pound Sterling (826),1,178,Debit,5.55E+22,02/12/2018,GLOUCESTER CC
Gloucester City Council,23UE,Housing Services,HS001,B&B Payments,1303,27/11/2018,26/11/2018,TRAVELODGE GB0000,THAME,,OX9 3AT,REDACTED,556*********6959,3615,TRAVELODGE,366,Pound Sterling (826),1,366,Debit,5.55E+22,02/12/2018,GLOUCESTER CC
Gloucester City Council,23UE,Housing Services,HS001,B&B Payments,1303,29/11/2018,28/11/2018,TRAVELODGE GB0000,THAME,,OX9 3AT,REDACTED,556*********6959,3615,TRAVELODGE,300,Pound Sterling (826),1,300,Debit,5.55E+22,02/12/2018,GLOUCESTER CC
Gloucester City Council,23UE,Housing Services,HS001,B&B Payments,1303,30/11/2018,29/11/2018,TRAVELODGE GB0000,THAME,,OX9 3AT,REDACTED,556*********6959,3615,TRAVELODGE,296,Pound Sterling (826),1,296,Debit,5.55E+22,02/12/2018,GLOUCESTER CC
Gloucester City Council,23UE,Housing Services,HS001,B&B Payments,1303,30/11/2018,29/11/2018,TRAVELODGE GB0000,THAME,,OX9 3AT,REDACTED,556*********6959,3615,TRAVELODGE,50,Pound Sterling (826),1,50,Debit,5.55E+22,02/12/2018,GLOUCESTER CC
Gloucester City Council,23UE,Guildhall Events,GH002,Advertising & Publicity,3404,05/11/2018,02/11/2018,WWW.INSTANTPRINT.C,01709 382202,,S63 5DR,REDACTED,556*********8256,7338,QUICK-COPY AND REPRODUCTION SERVICES,85,Pound Sterling (826),1,85,Debit,8.55E+22,02/12/2018,GLOUCESTER CC
Gloucester City Council,23UE,Guildhall Events,GH002,Advertising & Publicity,3404,19/11/2018,18/11/2018,MAILCHIMP *MONTHLY,MAILCHIMP.COM,GA,30308,REDACTED,556*********8256,5968,CONTINUITY/SUBSCRIPTION MERCHANTS,15.8,Pound Sterling (826),1,15.8,Debit,5.54E+22,02/12/2018,GLOUCESTER CC
Gloucester City Council,23UE,Guildhall Events,GH002,Advertising & Publicity,3404,19/11/2018,18/11/2018,FACEBK *8KHUWHN9X2,fb.me/ads,IRL,UNKNOWN,REDACTED,556*********8256,7311,ADVERTISING SERVICES,131.31,Pound Sterling (826),1,131.31,Debit,5.52E+22,02/12/2018,GLOUCESTER CC
Gloucester City Council,23UE,Gloucester Guildhall,GH001,Equipment and Furniture,3001,28/11/2018,27/11/2018,AMZN Mktp UK*M01DQ4O54,800-279-6620,LUX,L2338,REDACTED,556*********8256,5942,BOOK STORES,39,Pound Sterling (826),1,39,Debit,5.52E+22,02/12/2018,GLOUCESTER CC
Gloucester City Council,23UE,Gloucester Guildhall,GH001,Equipment and Furniture,3001,28/11/2018,27/11/2018,Amazon.co.uk*M01DC9O54,AMAZON.CO.UK,LUX,L2338,REDACTED,556*********8256,5969,ALL OTHER DIRECT MARKETERS,15.84,Pound Sterling (826),1,15.84,Debit,5.52E+22,02/12/2018,GLOUCESTER CC
Gloucester City Council,23UE,Housing Services,HS001,B&B Payments,1303,05/11/2018,02/11/2018,TRAVELODGE GB0000,THAME,,OX9 3AT,REDACTED,556*********3063,3615,TRAVELODGE,285,Pound Sterling (826),1,285,Debit,5.55E+22,02/12/2018,GLOUCESTER CC
Gloucester City Council,23UE,Housing Services,HS001,B&B Payments,1303,05/11/2018,02/11/2018,PREMIER INN44020525,TEWKESBURY,,GL20 8ND,REDACTED,556*********3063,3811,PREMIER INN,416.5,Pound Sterling (826),1,416.5,Debit,5.55E+22,02/12/2018,GLOUCESTER CC
Gloucester City Council,23UE,Business Transformation,BI006,General Supplies/Materials,3025,06/11/2018,05/11/2018,AMZN Mktp UK*MT8ID9U54,800-279-6620,LUX,L2338,REDACTED,556*********3063,5942,BOOK STORES,15.99,Pound Sterling (826),1,15.99,Debit,5.52E+22,02/12/2018,GLOUCESTER CC
Gloucester City Council,23UE,Business Transformation,BI006,General Supplies/Materials,3025,09/11/2018,08/11/2018,AMZN Mktp UK*M812O5CN4,800-279-6620,LUX,L2338,REDACTED,556*********3063,5942,BOOK STORES,13.48,Pound Sterling (826),1,13.48,Debit,5.52E+22,02/12/2018,GLOUCESTER CC
Gloucester City Council,23UE,Financial Services,FS004,Public Transport - Staff,2402,14/11/2018,13/11/2018,Trainline,London,GBR,1445,REDACTED,556*********3063,4112,PASSENGER RAILWAYS,259.1,Pound Sterling (826),1,259.1,Debit,8.51E+22,02/12/2018,GLOUCESTER CC
Gloucester City Council,23UE,Development Management,PL003,Public Transport - Staff,2402,14/11/2018,13/11/2018,Trainline,London,GBR,1445,REDACTED,556*********3063,4112,PASSENGER RAILWAYS,70.2,Pound Sterling (826),1,70.2,Debit,8.51E+22,02/12/2018,GLOUCESTER CC
Gloucester City Council,23UE,Business Transformation,BI006,"ICT Software, Licences & Support",3521,14/11/2018,13/11/2018,WWW.JA.NET,12358222311,,OX11 0SG,REDACTED,556*********3063,8699,MEMBERSHIP ORGANIZATIONS NOT ELSEWHERE CLASSIFIED,360,Pound Sterling (826),1,360,Debit,5.55E+22,02/12/2018,GLOUCESTER CC
Gloucester City Council,23UE,Development Management,PL003,Public Transport - Staff,2402,28/11/2018,27/11/2018,Trainline,London,GBR,1445,REDACTED,556*********3063,4112,PASSENGER RAILWAYS,70.2,Pound Sterling (826),1,70.2,Debit,8.51E+22,02/12/2018,GLOUCESTER CC
